[Event "Chinese Championship-B Men 2024"]
[Site "Liaocheng"]
[Date "2024.04.26"]
[Round "11.12"]
[White "Ren, Yibai"]
[Black "Wang, Hao B"]
[Result "0-1"]
[ECO "B76"]
[WhiteElo "1755"]
[BlackElo "2170"]
[Annotator "TA"]
[PlyCount "56"]
[EventDate "2024.04.24"]
[EventType "swiss"]
[EventCountry "CHN"]
[SourceTitle "playchess.com"]
[Source "ChessBase"]
[SourceQuality "1"]
[TimeControl "5400+30"]

{[%evp 17,56,77,85,55,56,29,5,-16,0,-84,8,14,17,29,157,143,156,159,1742,1636,29989,29990,29990,-163,-219,-483,-506,-870,-879,-911,-918,-925,-920,-1390,-1369,-625,-1522,-5396,-3500,-2207,-2085]} 1. e4 {[%emt 0:00:04]} c5 {[%emt 0:00:14]} 2. Nf3 {[%emt 0:00:16]} d6 {[%emt 0:00:34]} 3. d4 {[%emt 1:31:40]} cxd4 {[%emt 0:00:10]} 4. Nxd4 {[%emt 0:00:00]} Nf6 {[%emt 0:00:05]} 5. Nc3 {[%emt 0:00:00]} a6 {[%emt 0:00:09]} 6. f3 {[%emt 0:00:00]} Nc6 {[%emt 0:01:09]} 7. Be3 {[%emt 0:00:00]} g6 {[%emt 0:01:15]} 8. Qd2 {[%emt 0:00:00]} Bg7 {[%emt 0:00:08]} 9. O-O-O {[%emt 0:00:00]} O-O {[%emt 0:00:07]} 10. h4 {[%emt 0:00:00]} h5 {[%emt 0:03:26]} 11. Nxc6 {[%emt 0:00:00]} bxc6 {[%emt 0:00:05]} 12. g4 {[%emt 0:00:00] The position is equal.} Qa5 {[%emt 0:01:30]} 13. Bh6 {[%emt 0:00:00]} (13. gxh5 $11 Nxh5 14. Bd4) 13... Be6 {[%emt 0:05:42]} (13... hxg4 $17 14. Bxg7 Kxg7) 14. gxh5 {[%emt 0:00:00]} Nxh5 {[%emt 0:01:22]} 15. Bxg7 {[%emt 0:00:00]} Nxg7 {[%emt 0:00:04] [#]} (15... Kxg7 $11 {remains equal.} 16. f4 Bxa2) 16. h5 $1 $16 {[%emt 0:00:00][%mdl 512]} Nxh5 {[%emt 0:00:12][%cal Of8b8]} 17. Bb5 $1 {[%emt 0:00:00]} axb5 $2 {[%emt 0:01:27]} (17... f6 $16) 18. Qh6 $18 {[%emt 0:00:00] Intending Rxh5 and mate.} Rfb8 {[%emt 0:08:07]} 19. Rxh5 {[%emt 0:00:00]} gxh5 {[%emt 0:00:05]} 20. Qxh5 $4 {[%emt 0:00:00][%mdl 8192]} (20. Rg1+ {mates} Bg4 21. Qxh5 e5 22. Qh6 (22. fxg4 Qa7 $14) (22. Rxg4+ Kf8 $15) 22... f5 23. exf5 (23. fxg4 Qa7 $18) 23... Qb4 24. Qg6+ (24. Rxg4+ Qxg4 25. fxg4 Ra7 $18) 24... Kf8 25. Rh1 (25. Rxg4 Qxg4 26. Qxd6+ Kf7 $18)) 20... Qb6 $19 {[%emt 0:00:26]} (20... Bxa2 21. Rg1+ Kf8 22. Qh8#) 21. Qh6 {[%emt 0:00:00] [#] Wards off Qe3+} (21. Qh1 {was forced.} Qe3+ (21... Bxa2 $2 22. Rg1+ $18) 22. Kb1) 21... f6 $1 {[%emt 0:03:31] Black is clearly winning.} (21... Bxa2 $2 22. Rh1 $18) 22. Qg6+ {[%emt 0:00:00]} (22. e5 $142 Bf5 (22... Bxa2 23. exf6 exf6 24. Qg6+ Kf8 25. Qxf6+ Bf7 26. Qh6+ Ke8 27. Re1+ Kd7 28. Qh3+ Kd8 29. Qh8+ Kd7 30. Qh3+ Kd8 31. Qh8+ Kd7 32. Qh3+ $11) (22... dxe5 23. Qg6+ Kf8 24. Qh6+ Kg8 25. Qg6+ Kf8 26. Qh6+ Kf7 27. Qh7+ Kf8 28. Qh6+ $11) 23. exf6 exf6 24. Qxf6 Qe3+ 25. Kb1) 22... Kf8 {[%emt 0:00:04]} 23. Rh1 {[%emt 0:00:00] [#]} Qe3+ $1 {[%emt 0:00:05]} ({Stronger than} 23... Bxa2 24. Rh8+) 24. Kb1 {[%emt 0:00:00]} Bg8 {[%emt 0:00:05][%cal Ob5b4] Strongly threatening ...b4!} ({Inferior is} 24... Qxf3 25. Rh8+) 25. Rg1 {[%emt 0:00:00]} Bf7 {[%emt 0:00:08]} 26. Qg7+ {[%emt 0:00:00]} Ke8 {[%emt 0:00:04]} 27. Qh8+ {[%emt 0:00:00]} Kd7 {[%emt 0:00:07]} 28. Qh3+ {[%emt 0:00:00]} Be6 {[%emt 0:00:06] Quite a comeback for Black.   Weighted Error Value: White=1.20/Black=0.42.  Loses game:     	---       	Black=1      Mistake:       	White=2     	Black=2      Inaccurate:     	White=1     	Black=1      OK:         	White=3     	---        Best:        	White=1     	Black=3      Strong:       	---       	Black=1} 0-1

[Event "Chinese Championship-B Men 2024"]
[Site "Liaocheng"]
[Date "2024.04.26"]
[Round "11.13"]
[White "Liu, Huaqi"]
[Black "Shen, Chenyi"]
[Result "1/2-1/2"]
[ECO "C16"]
[WhiteElo "1742"]
[BlackElo "1974"]
[Annotator "TA"]
[PlyCount "62"]
[EventDate "2024.04.24"]
[EventType "swiss"]
[EventCountry "CHN"]
[SourceTitle "playchess.com"]
[Source "ChessBase"]
[SourceQuality "1"]
[TimeControl "5400+30"]

{[%evp 19,62,27,37,29,28,10,43,43,31,33,43,25,18,25,23,19,24,32,89,91,100,84,104,59,75,86,89,8,21,24,14,0,0,0,0,0,0,-7,0,0,0,-35,0,0,0]} 1. e4 {[%emt 0:00:03]} e6 {[%emt 0:03:54]} 2. d4 {[%emt 0:00:07]} d5 {[%emt 0:00:02]} 3. Nc3 {[%emt 0:00:12]} Bb4 {[%emt 0:00:03]} 4. e5 {[%emt 0:00:18]} Ne7 {[%emt 0:00:09]} 5. a3 {[%emt 0:00:13]} Bxc3+ {[%emt 0:00:04]} 6. bxc3 {[%emt 0:00:06]} b6 {[%emt 0:00:17]} 7. Qg4 {[%emt 0:00:11]} Ng6 {[%emt 0:00:09]} 8. h4 {[%emt 0:00:10]} h5 {[%emt 0:00:15]} 9. Qg3 {[%emt 0:00:13]} Ba6 {[%emt 0:00:12]} 10. Bxa6 {[%emt 0:00:21]} Nxa6 {[%emt 0:00:04]} 11. Bg5 {[%emt 0:00:22]} Qd7 {[%emt 0:00:10]} 12. Ne2 {[%emt 0:00:14][%cal Bg1e2,Be2f4,Bf4h3,Bh3g5][%mdl 32]} Nb8 {[%emt 0:06:32]} 13. a4 {[%emt 0:03:06] White is slightly better.} Nc6 {[%emt 0:13:03]} 14. Qf3 {[%emt 0:02:01]} Nge7 $1 {[%emt 0:02:15]} 15. Nf4 {[%emt 0:01:18]} g6 {[%emt 0:01:00]} 16. Bf6 {[%emt 0:01:19]} Rg8 {[%emt 0:01:38]} 17. Nh3 {[%emt 0:00:41]} Nf5 {[%emt 0:15:22]} 18. Ng5 {[%emt 0:02:40]} Nce7 {[%emt 0:03:41]} (18... Na5 $14) 19. Nh7 $16 {[%emt 0:12:31]} O-O-O {[%emt 0:00:54][%cal Be8c8,Bc8b8,Bb8a8][%mdl 32]} 20. O-O {[%emt 0:03:29]} Kb8 {[%emt 0:02:45]} 21. a5 {[%emt 0:05:52] And now Bxe7 would win. Black is weak on the dark squares} b5 $1 {[%emt 0:08:28]} 22. a6 {[%emt 0:01:35]} Ka8 {[%emt 0:01:21]} 23. g3 {[%emt 0:17:08] White is much more active.} ({White should play} 23. Bg5 $16 {Hoping for Nf6.} Rh8 24. Nf6) 23... Rb8 $1 $11 {[%emt 0:01:15]} 24. Bxe7 {[%emt 0:00:50]} Qxe7 {[%emt 0:00:15]} 25. Nf6 {[%emt 0:00:20] [#] Strongly threatening Nxd5.} Rgc8 {[%emt 0:05:50]} 26. Rfb1 {[%emt 0:01:32]} Rb6 {[%emt 0:01:58]} 27. Ra5 {[%emt 0:03:45]} c6 {[%emt 0:00:51]} 28. Rb4 {[%emt 0:05:14]} Rcb8 {[%emt 0:01:22]} 29. Qd1 {[%emt 0:02:17]} Nd6 {[%emt 0:05:37]} 30. Nxd5 {[%emt 0:10:43]} (30. exd6 Qxf6 31. Qe1 Rd8) (30. Ra1 $5) 30... cxd5 {[%emt 0:01:19]} 31. exd6 {[%emt 0:00:03]} Qxd6 {[%emt 0:00:09] Weighted Error Value: White=0.14 (very precise) /Black=0.08 (flawless) .  Mistake:       	White=1     	Black=1      Inaccurate:     	White=2     	Black=2      OK:         	White=5     	Black=6      Best:        	---       	Black=1      Strong:       	---       	Black=3} 1/2-1/2

[Event "Chinese Championship-B Men 2024"]
[Site "Liaocheng"]
[Date "2024.04.26"]
[Round "11.14"]
[White "Liu, Aiwei"]
[Black "Qu, Haoming"]
[Result "0-1"]
[ECO "B07"]
[WhiteElo "1954"]
[BlackElo "1786"]
[Annotator "TA"]
[PlyCount "166"]
[EventDate "2024.04.24"]
[EventType "swiss"]
[EventCountry "CHN"]
[SourceTitle "playchess.com"]
[Source "ChessBase"]
[SourceQuality "1"]
[TimeControl "5400+30"]

{[%evp 15,165,43,48,45,49,43,46,48,60,48,56,54,62,67,60,72,78,79,86,91,88,72,68,33,38,16,18,9,38,8,8,8,6,4,12,12,13,13,13,16,20,0,0,0,0,0,0,0,0,0,0,0,0,0,0,0,0,0,0,0,0,0,0,0,0,0,0,-57,-60,-68,-68,-68,-68,-68,-68,-68,-68,-68,-35,-77,-68,-68,-68,-68,-68,-68,-68,-68,-68,-68,-68,-68,-68,-69,-18,-18,-29,-29,-29,-29,-31,-68,-68,-91,-91,-91,-91,-91,-68,-68,-37,-68,-68,-68,-68,-68,0,-116,-109,-109,-129,-132,-138,-29982,-29957,-29957,-29953,-29957,-29958,-29958,-29953,-29957,-29959,-29969,-29958,-29987,-29988,-29988,-29989,-29992,-29993,-29993,-29994,-29994,-29995,-29996,-29997,-29997,-29998,-29998,-29999,-29999]} 1. e4 {[%emt 0:00:06]} d6 {[%emt 0:00:29]} 2. d4 {[%emt 0:00:02]} Nf6 {[%emt 0:00:13]} 3. Nc3 {[%emt 0:00:03]} e5 {[%emt 0:00:06]} 4. dxe5 {[%emt 0:00:11]} dxe5 {[%emt 0:00:24]} 5. Qxd8+ {[%emt 0:00:03]} Kxd8 {[%emt 0:00:11]} 6. Bc4 {[%emt 0:00:02]} Be6 {[%emt 0:00:53]} 7. Bxe6 {[%emt 0:00:04]} fxe6 {[%emt 0:00:05]} 8. f3 {[%emt 0:00:02]} Bd6 {[%emt 0:00:14]} 9. Nb1 {[%emt 0:00:44]} Ke7 {[%emt 0:05:10]} 10. Be3 {[%emt 0:00:24]} Nc6 {[%emt 0:03:28]} 11. c3 {[%emt 0:00:03] White is slightly better.} a6 {[%emt 0:00:44]} 12. Nd2 {[%emt 0:02:22]} h6 {[%emt 0:03:05]} 13. Nh3 {[%emt 0:08:47][%cal Bg1h3,Bh3f2,Bf2d3][%mdl 32]} Rhb8 {[%emt 0:03:04]} 14. Nf2 {[%emt 0:00:22]} b5 {[%emt 0:02:34]} 15. Nd3 {[%emt 0:10:09]} Nd7 {[%emt 0:00:31]} 16. Ke2 {[%emt 0:04:24]} Na5 {[%emt 0:03:18]} 17. b4 {[%emt 0:00:32]} Nb7 {[%emt 0:07:08]} 18. a4 {[%emt 0:01:25]} c5 {[%emt 0:04:04]} 19. axb5 {[%emt 0:16:35]} axb5 {[%emt 0:00:12]} 20. Rxa8 {[%emt 0:01:41]} Rxa8 {[%emt 0:00:00]} 21. bxc5 {[%emt 0:00:07]} Nbxc5 {[%emt 0:00:26]} 22. Nxc5 {[%emt 0:00:45]} Bxc5 {[%emt 0:00:26]} 23. Rb1 {[%emt 0:04:40]} Bxe3 {[%emt 0:06:59]} 24. Kxe3 $11 {[%emt 0:00:23][%mdl 4096] Endgame. KRN-KRN} Ra3 {[%emt 0:00:08]} 25. Rb3 {[%emt 0:11:15]} Ra5 {[%emt 0:08:23]} 26. c4 {[%emt 0:00:40]} bxc4 {[%emt 0:00:16]} 27. Nxc4 {[%emt 0:00:04]} Ra4 {[%emt 0:00:28]} 28. Rc3 {[%emt 0:01:38]} Ra2 {[%emt 0:01:27]} 29. Nd2 {[%emt 0:00:08]} g5 {[%emt 0:01:32]} 30. Kd3 {[%emt 0:01:44]} Kf6 {[%emt 0:00:51]} 31. Rc2 {[%emt 0:05:35]} Ra6 {[%emt 0:01:51]} 32. Ke2 {[%emt 0:00:30]} Nf8 {[%emt 0:00:15]} 33. Nf1 {[%emt 0:05:08]} Ng6 {[%emt 0:01:08]} 34. g3 {[%emt 0:00:05]} h5 {[%emt 0:00:41]} 35. Ne3 {[%emt 0:00:04]} Ne7 {[%emt 0:00:26]} 36. Kf2 {[%emt 0:02:50]} Nc6 {[%emt 0:00:31]} 37. Rb2 {[%emt 0:05:06]} Nd4 {[%emt 0:02:53]} 38. Rd2 {[%emt 0:01:12]} Ra1 {[%emt 0:01:43]} 39. Rb2 {[%emt 0:01:19]} Rc1 {[%emt 0:04:35]} 40. Ra2 {[%emt 0:00:47]} Rb1 {[%emt 0:00:11]} 41. Rd2 {[%emt 0:00:10]} ({White should try} 41. Kg2 $11) 41... Rh1 $15 {[%emt 0:00:07]} 42. Nf1 {[%emt 0:14:41] [#] Rd1 is the strong threat.} Nxf3 $1 {[%emt 0:03:22] Black is more active.} 43. Kxf3 {[%emt 0:00:18] White wants to mate with Kg2.} Rxf1+ {[%emt 0:00:02] KR-KR} 44. Ke3 {[%emt 0:01:23]} Ra1 {[%emt 0:00:24]} 45. Rf2+ {[%emt 0:00:53]} Ke7 {[%emt 0:00:17]} 46. Rb2 {[%emt 0:00:25]} Re1+ {[%emt 0:00:19]} 47. Kd3 {[%emt 0:00:08]} Rh1 {[%emt 0:01:16]} 48. Ke3 {[%emt 0:01:36]} Kf6 {[%emt 0:01:01]} 49. Rf2+ {[%emt 0:00:24]} Kg7 {[%emt 0:00:30]} 50. Kd3 {[%emt 0:01:59]} Ra1 {[%emt 0:00:47]} 51. Rb2 {[%emt 0:01:02]} Ra3+ {[%emt 0:00:28]} 52. Ke2 {[%emt 0:00:17]} Kf6 {[%emt 0:00:14]} 53. Rd2 {[%emt 0:00:53]} h4 {[%emt 0:37:10]} 54. Rd3 {[%emt 0:01:20]} Ra2+ {[%emt 0:00:00]} (54... Ra8 $15) 55. Rd2 $11 {[%emt 0:00:00]} Ra1 {[%emt 0:00:00]} 56. Kf3 {[%emt 0:00:00]} hxg3 {[%emt 0:00:00]} 57. hxg3 {[%emt 0:00:00]} Ra3+ {[%emt 0:00:00]} 58. Kf2 {[%emt 0:01:09]} g4 {[%emt 0:00:00]} 59. Re2 {[%emt 0:00:21]} Ke7 {[%emt 0:00:00]} 60. Re3 {[%emt 0:00:15]} Ra4 {[%emt 0:00:00]} 61. Ke2 {[%emt 0:00:40]} Kd6 {[%emt 0:00:00]} 62. Rd3+ {[%emt 0:00:51]} Kc5 {[%emt 0:00:00][%cal Oc5c6]} 63. Ke3 {[%emt 0:00:06]} Ra2 {[%emt 0:00:00]} 64. Rc3+ {[%emt 0:00:11]} Kb5 {[%emt 0:00:00]} 65. Rb3+ {[%emt 0:00:57]} Kc4 {[%emt 0:00:00]} ({Better is} 65... Kc6 $1 $15 66. Rc3+ Kd7 67. Rd3+ Ke7) 66. Rb6 {[%emt 0:00:06]} (66. Rc3+ $1 $11 Kb5 67. Rb3+ Kc5 68. Rc3+ Kd6 69. Rd3+ Ke7 70. Rd2) 66... Ra3+ $17 {[%emt 0:00:00]} 67. Kf2 {[%emt 0:00:36]} Kd4 {[%emt 0:07:00]} 68. Rxe6 {[%emt 0:00:25]} Kxe4 {[%emt 0:00:00] ( -> ...Ra2+)} 69. Rf6 $2 {[%emt 0:00:39][%mdl 8192] This costs White the game.} (69. Rb6 $17) 69... Ra2+ {[%emt 0:00:00] Black mates.} 70. Kf1 {[%emt 0:00:15]} Kd3 {[%emt 0:00:00]} 71. Rd6+ {[%emt 0:00:52]} Ke3 {[%emt 0:00:00]} 72. Rb6 {[%emt 0:00:15]} Ra3 {[%emt 0:00:00]} 73. Kg2 {[%emt 0:00:14]} e4 {[%emt 0:00:00]} 74. Rf6 {[%emt 0:00:27]} Kd2 {[%emt 0:00:00]} 75. Rf4 {[%emt 0:00:18]} e3 {[%emt 0:00:00]} 76. Rd4+ {[%emt 0:01:01]} Rd3 {[%emt 0:00:00]} 77. Re4 {[%emt 0:01:17]} e2 {[%emt 0:00:00]} 78. Kf2 {[%emt 0:00:04] [#]} e1=Q+ $1 {[%emt 0:00:00][%mdl 512]} 79. Rxe1 {[%emt 0:00:06]} Rf3+ {[%emt 0:00:00]} 80. Kg2 {[%emt 0:00:14]} Kxe1 {[%emt 0:00:00]} 81. Kh2 {[%emt 0:00:09]} Kf1 {[%emt 0:00:00]} 82. Kh1 {[%emt 0:00:04]} Rxg3 {[%emt 0:00:00][%cal Rg3h3]} 83. Kh2 {[%emt 0:00:03]} Rh3# {[%emt 0:00:00] Weighted Error Value: White=0.09 (flawless) /Black=0.05 (flawless) .  Loses game:     	White=1     	---        Mistake:       	White=2     	Black=2      Inaccurate:     	White=5     	Black=3      OK:         	White=17    	Black=20     Best:        	White=3     	Black=4      Brilliant:      	---       	Black=1} 0-1

[Event "Chinese Championship-B Men 2024"]
[Site "Liaocheng"]
[Date "2024.04.26"]
[Round "11.15"]
[White "Hong, Mingren"]
[Black "Yao, Yuhang"]
[Result "1-0"]
[ECO "B54"]
[WhiteElo "1747"]
[BlackElo "1887"]
[Annotator "NA RC"]
[PlyCount "89"]
[EventDate "2024.04.24"]
[EventType "swiss"]
[EventCountry "CHN"]
[SourceTitle "playchess.com"]
[Source "ChessBase"]
[SourceQuality "1"]
[TimeControl "5400+30"]

1. e4 {[%emt 0:00:04]} c5 {[%emt 0:00:02]} 2. Nf3 {[%emt 0:00:06]} e6 {[%emt 0:00:03]} 3. c4 {[%emt 0:00:20]} Nc6 {[%emt 0:00:07]} 4. Be2 {[%emt 0:00:04]} Nf6 {[%emt 0:00:17]} 5. Nc3 {[%emt 0:00:04]} Be7 {[%emt 0:01:27]} 6. O-O {[%emt 0:00:08]} O-O {[%emt 0:00:10]} 7. d4 {[%emt 0:00:02]} cxd4 {[%emt 0:01:17]} 8. Nxd4 {[%emt 0:00:03]} d6 {[%emt 0:04:53]} 9. Be3 {[%emt 0:00:08]} Bd7 {[%emt 0:02:52]} 10. Qd2 {[%emt 0:01:26]} Nxd4 {[%emt 0:01:05]} 11. Bxd4 {[%emt 0:00:06]} Bc6 {[%emt 0:00:06]} 12. f3 {[%emt 0:00:06]} a6 {[%emt 0:04:01] B54: Sicilian: 2...d6 3 d4 cxd4 4 Nxd4, Unusual Lines .} 13. Rfd1 {[%emt 0:01:01]} Kh8 {[%emt 0:04:34]} 14. b4 {[%emt 0:05:38]} Be8 {[%emt 0:02:07]} (14... b6 $14 {is more appropriate.}) 15. Qb2 {[%emt 0:03:59]} Qc7 {[%emt 0:04:21]} 16. Rac1 {[%emt 0:01:08]} Rg8 {[%emt 0:02:14]} 17. a4 {[%emt 0:00:30]} Rc8 {[%emt 0:00:30]} 18. a5 {[%emt 0:00:43]} Qb8 {[%emt 0:01:26]} 19. Bf1 {[%emt 0:01:59]} Nd7 {[%emt 0:01:33]} 20. Na4 {[%emt 0:03:29]} Bd8 {[%emt 0:00:55]} 21. Qf2 {[%emt 0:01:13]} Rc6 {[%emt 0:05:25]} 22. Nb6 {[%emt 0:06:27]} e5 {[%emt 1:02:05]} 23. Be3 {[%emt 0:02:41]} Nxb6 {[%emt 0:00:00]} 24. axb6 {[%emt 0:00:05]} f6 {[%emt 0:00:00]} 25. c5 {[%emt 0:00:36]} Be7 {[%emt 0:00:00]} 26. b5 {[%emt 0:07:46]} (26. Bc4 $18 Rf8 27. Bd5) 26... axb5 {[%emt 0:00:00]} 27. Bxb5 {[%emt 0:00:04]} Rc8 {[%emt 0:00:00]} 28. Bc4 {[%emt 0:00:13]} Rf8 {[%emt 0:00:00]} 29. Be6 {[%emt 0:00:28]} Rd8 {[%emt 0:00:00]} 30. cxd6 {[%emt 0:03:16]} Rxd6 {[%emt 0:00:00]} (30... Bxd6 $142 31. h3 Bf7) 31. Bd5 {[%emt 0:00:16]} (31. Rxd6 $18 Qxd6 32. Bd5) 31... Bf7 {[%emt 0:00:00]} 32. Bc5 {[%emt 0:08:37]} (32. Rc7 $18 Bd8 33. Rc3 (33. Rxf7 Rxf7 34. Bc5 Rfd7 $11) (33. Rxb7 $2 {loses.} Qxb7 34. Bc5 Bxd5 $19)) 32... Rd7 {[%emt 0:00:00]} 33. Bxf7 {[%emt 0:00:29]} Rxd1+ {[%emt 0:00:00]} 34. Rxd1 {[%emt 0:02:03]} Rxf7 {[%emt 0:00:00]} 35. Bxe7 {[%emt 0:00:22]} Rxe7 {[%emt 0:00:00]} 36. Qc5 {[%emt 0:00:03]} Qe8 {[%emt 0:00:00]} 37. Qc7 {[%emt 0:01:06]} Qa4 {[%emt 0:00:00]} 38. Rd8+ {[%emt 0:00:29]} Re8 {[%emt 0:00:00]} 39. Rxe8+ {[%emt 0:02:37]} Qxe8 {[%emt 0:00:00]} 40. Qxb7 {[%emt 0:00:05]} h6 {[%emt 0:00:00]} 41. Qd5 {[%emt 0:03:17]} (41. Qc7 $142 Qa4 42. h3 Kh7 43. b7 Qa7+ 44. Kh2 Kg8 45. b8=Q+ (45. b8=B Qd4 $18) 45... Qxb8 46. Qxb8+ Kf7 47. Qd6) 41... Qa4 {[%emt 0:00:00]} 42. b7 {[%emt 0:01:04]} Qa1+ {[%emt 0:00:00]} 43. Kf2 {[%emt 0:00:05]} Qb2+ {[%emt 0:00:00]} 44. Kg3 {[%emt 0:00:06]} Kh7 {[%emt 0:00:00]} 45. Qd7 {[%emt 0:00:10]} 1-0